[Event "*** SCC Grand Prix: Titled Tuesday Blitz"]
[Site "Chess.com"]
[Date "2020.07.21"]
[Round "8"]
[White "imdvb6307"]
[Black "Ausbildung"]
[Result "1-0"]
[WhiteElo "2406"]
[BlackElo "2242"]
[TimeControl "180+1"]
[EndTime "11:34:57 PDT"]
[Termination "imdvb6307 won by resignation"]

1. c4 {[%clk 0:02:57.5]} 1... g6 {[%clk 0:02:59.1]} 2. Nf3 {[%clk 0:02:55.8]}
2... Bg7 {[%clk 0:02:59.4]} 3. d4 {[%clk 0:02:55.4]} 3... d6 {[%clk 0:02:59.7]}
4. Nc3 {[%clk 0:02:53.7]} 4... e5 {[%clk 0:02:58]} 5. dxe5 {[%clk 0:02:52.9]}
5... dxe5 {[%clk 0:02:57.6]} 6. Qxd8+ {[%clk 0:02:52.9]} 6... Kxd8 {[%clk
0:02:58.3]} 7. h4 {[%clk 0:02:46.4]} 7... c6 {[%clk 0:02:54.9]} 8. h5 {[%clk
0:02:45.6]} 8... f6 {[%clk 0:02:51.6]} 9. e3 {[%clk 0:02:36.6]} 9... Kc7 {[%clk
0:02:49.8]} 10. b3 {[%clk 0:02:21.6]} 10... Bg4 {[%clk 0:02:45.4]} 11. hxg6
{[%clk 0:02:21]} 11... hxg6 {[%clk 0:02:44.4]} 12. Rxh8 {[%clk 0:02:20.5]} 12...
Bxh8 {[%clk 0:02:43.9]} 13. Ba3 {[%clk 0:02:15.5]} 13... Nh6 {[%clk 0:02:34.5]}
14. O-O-O {[%clk 0:01:57.1]} 14... Nf7 {[%clk 0:02:33.2]} 15. Bd3 {[%clk
0:01:50.3]} 15... f5 {[%clk 0:02:23.2]} 16. e4 {[%clk 0:01:41.8]} 16... Nd7
{[%clk 0:02:19.4]} 17. Rh1 {[%clk 0:01:39.4]} 17... Bh5 {[%clk 0:01:44.5]} 18.
exf5 {[%clk 0:01:35.1]} 18... Rg8 {[%clk 0:01:31.3]} 19. Nh4 {[%clk 0:01:27.3]}
19... gxf5 {[%clk 0:01:22.5]} 20. Nxf5 {[%clk 0:01:24.1]} 20... Bg6 {[%clk
0:01:18.9]} 21. Ne7 {[%clk 0:01:21.4]} 21... Bxd3 {[%clk 0:01:12.6]} 22. Nxg8
{[%clk 0:01:20.9]} 22... e4 {[%clk 0:01:12.5]} 23. Nd1 {[%clk 0:01:20.2]} 23...
Bd4 {[%clk 0:01:08.1]} 24. Bb2 {[%clk 0:01:18.5]} 24... c5 {[%clk 0:01:03.9]}
25. Ne7 {[%clk 0:01:17.6]} 25... Nfe5 {[%clk 0:01:00.2]} 26. Nf5 {[%clk
0:01:17.1]} 26... Bxb2+ {[%clk 0:00:55.5]} 27. Nxb2 {[%clk 0:01:00.9]} 27... Ng4
{[%clk 0:00:49.4]} 28. Nxd3 {[%clk 0:01:00.1]} 28... exd3 {[%clk 0:00:48.7]} 29.
f3 {[%clk 0:00:50.7]} 29... Nge5 {[%clk 0:00:43.9]} 30. Kd2 {[%clk 0:00:47]}
30... b5 {[%clk 0:00:42.7]} 31. cxb5 {[%clk 0:00:42.6]} 31... Nb6 {[%clk
0:00:42.5]} 32. Rh7+ {[%clk 0:00:41.4]} 32... Kb8 {[%clk 0:00:40.8]} 33. Ne7
{[%clk 0:00:39.4]} 33... Nbd7 {[%clk 0:00:20.3]} 34. Nc6+ {[%clk 0:00:38.6]} 1-0

[Event "*** SCC Grand Prix: Titled Tuesday Blitz"]
[Site "Chess.com"]
[Date "2020.07.21"]
[Round "8"]
[White "Giraffe_Chess"]
[Black "CzechmVIII"]
[Result "1-0"]
[WhiteElo "2380"]
[BlackElo "2193"]
[TimeControl "180+1"]
[EndTime "11:35:02 PDT"]
[Termination "Giraffe_Chess won by resignation"]

1. d4 {[%clk 0:02:53.1]} 1... Nf6 {[%clk 0:02:59.7]} 2. c4 {[%clk 0:02:49.9]}
2... c5 {[%clk 0:02:59.6]} 3. d5 {[%clk 0:02:49.1]} 3... b5 {[%clk 0:02:59.7]}
4. f3 {[%clk 0:02:48.7]} 4... bxc4 {[%clk 0:02:54.4]} 5. e4 {[%clk 0:02:49.6]}
5... e6 {[%clk 0:02:51.4]} 6. Bxc4 {[%clk 0:02:49.1]} 6... exd5 {[%clk
0:02:49.9]} 7. Bxd5 {[%clk 0:02:50]} 7... Nxd5 {[%clk 0:02:49.3]} 8. Qxd5 {[%clk
0:02:50.9]} 8... Nc6 {[%clk 0:02:46.8]} 9. Ne2 {[%clk 0:02:48.4]} 9... Be7
{[%clk 0:02:38.5]} 10. O-O {[%clk 0:02:47.5]} 10... O-O {[%clk 0:02:38.4]} 11.
Nbc3 {[%clk 0:02:46.8]} 11... Rb8 {[%clk 0:02:36.5]} 12. Be3 {[%clk 0:02:36.8]}
12... Nb4 {[%clk 0:01:59.5]} 13. Qd2 {[%clk 0:02:35.1]} 13... Ba6 {[%clk
0:01:47.1]} 14. Rfd1 {[%clk 0:02:24.2]} 14... d5 {[%clk 0:01:36.5]} 15. exd5
{[%clk 0:02:20.2]} 15... Bd6 {[%clk 0:01:33.4]} 16. Nf4 {[%clk 0:02:09.9]} 16...
Re8 {[%clk 0:01:09.4]} 17. Rac1 {[%clk 0:01:24.3]} 17... Qc7 {[%clk 0:00:43.2]}
18. g3 {[%clk 0:01:19.8]} 18... Rxe3 {[%clk 0:00:26]} 19. Qxe3 {[%clk
0:01:20.7]} 19... Bxf4 {[%clk 0:00:26.1]} 20. Qxf4 {[%clk 0:01:19.9]} 20... Qxf4
{[%clk 0:00:26.2]} 21. gxf4 {[%clk 0:01:20.8]} 21... Nd3 {[%clk 0:00:26.3]} 22.
Rc2 {[%clk 0:01:13.4]} 22... Rd8 {[%clk 0:00:18.8]} 23. Rcd2 {[%clk 0:01:12.5]}
23... Nxf4 {[%clk 0:00:18.7]} 24. d6 {[%clk 0:01:12.3]} 24... c4 {[%clk
0:00:15.5]} 25. Nd5 {[%clk 0:01:11.4]} 25... Nd3 {[%clk 0:00:13.7]} 26. Nc7
{[%clk 0:00:43.7]} 26... Bb7 {[%clk 0:00:12.1]} 27. b3 {[%clk 0:00:43.9]} 27...
Rxd6 {[%clk 0:00:11.3]} 28. bxc4 {[%clk 0:00:43.8]} 28... Rg6+ {[%clk
0:00:11.4]} 29. Kf1 {[%clk 0:00:42.5]} 29... Bxf3 {[%clk 0:00:07]} 30. Rxd3
{[%clk 0:00:42.1]} 30... h5 {[%clk 0:00:07.2]} 31. R1d2 {[%clk 0:00:40.2]} 31...
Bg4 {[%clk 0:00:07]} 32. Nd5 {[%clk 0:00:39.3]} 32... Be6 {[%clk 0:00:06.7]} 33.
Ne7+ {[%clk 0:00:39.1]} 33... Kh7 {[%clk 0:00:06.6]} 34. Nxg6 {[%clk 0:00:40]}
34... Kxg6 {[%clk 0:00:07.3]} 35. Rd6 {[%clk 0:00:39.4]} 1-0

[Event "*** SCC Grand Prix: Titled Tuesday Blitz"]
[Site "Chess.com"]
[Date "2020.07.21"]
[Round "8"]
[White "TheWolfSpur"]
[Black "Harry_Rakkel"]
[Result "0-1"]
[WhiteElo "2386"]
[BlackElo "2548"]
[TimeControl "180+1"]
[EndTime "11:35:05 PDT"]
[Termination "Harry_Rakkel won by resignation"]

1. d4 {[%clk 0:03:00.9]} 1... Nf6 {[%clk 0:02:49.9]} 2. c4 {[%clk 0:03:00.6]}
2... e6 {[%clk 0:02:49]} 3. Nf3 {[%clk 0:02:59.9]} 3... d5 {[%clk 0:02:47.4]} 4.
Nc3 {[%clk 0:02:59.9]} 4... Nbd7 {[%clk 0:02:45.8]} 5. Bf4 {[%clk 0:02:57.2]}
5... dxc4 {[%clk 0:02:41.8]} 6. e3 {[%clk 0:02:56.9]} 6... Nd5 {[%clk
0:02:37.9]} 7. Bxc4 {[%clk 0:02:55.9]} 7... Nxf4 {[%clk 0:02:38.4]} 8. exf4
{[%clk 0:02:56.3]} 8... Nb6 {[%clk 0:02:38.8]} 9. Bd3 {[%clk 0:02:23.8]} 9... g6
{[%clk 0:02:33.4]} 10. O-O {[%clk 0:02:22.3]} 10... Bg7 {[%clk 0:02:31.6]} 11.
Qe2 {[%clk 0:01:50.5]} 11... O-O {[%clk 0:02:23.8]} 12. Rad1 {[%clk 0:01:47.3]}
12... Nd5 {[%clk 0:02:20]} 13. g3 {[%clk 0:01:45.2]} 13... b6 {[%clk 0:02:16.2]}
14. Ne5 {[%clk 0:01:43.2]} 14... Bb7 {[%clk 0:02:15.6]} 15. Be4 {[%clk
0:01:29.8]} 15... Rc8 {[%clk 0:02:06.9]} 16. Rfe1 {[%clk 0:01:24.1]} 16... a6
{[%clk 0:02:03.9]} 17. Bg2 {[%clk 0:01:18.4]} 17... Qd6 {[%clk 0:02:02.5]} 18.
Ne4 {[%clk 0:01:12.7]} 18... Qb4 {[%clk 0:02:00.7]} 19. a3 {[%clk 0:01:10.1]}
19... Qb5 {[%clk 0:02:00.1]} 20. Qxb5 {[%clk 0:00:36.5]} 20... axb5 {[%clk
0:01:59.4]} 21. Bf1 {[%clk 0:00:31.2]} 21... c6 {[%clk 0:01:51.2]} 22. Nd6
{[%clk 0:00:26.1]} 22... Rc7 {[%clk 0:01:48.1]} 23. Nxb7 {[%clk 0:00:24.7]}
23... Bxe5 {[%clk 0:01:47.7]} 24. dxe5 {[%clk 0:00:17.2]} 24... Rxb7 {[%clk
0:01:47.4]} 25. Bg2 {[%clk 0:00:17.8]} 25... Ra8 {[%clk 0:01:44.6]} 26. Rc1
{[%clk 0:00:17.6]} 26... c5 {[%clk 0:01:42]} 27. Red1 {[%clk 0:00:17.6]} 27...
Rd7 {[%clk 0:01:41.9]} 28. h4 {[%clk 0:00:17.5]} 28... Ra4 {[%clk 0:01:40.8]}
29. h5 {[%clk 0:00:17.2]} 29... Kf8 {[%clk 0:01:40.6]} 30. Bxd5 {[%clk
0:00:16.6]} 30... Rxd5 {[%clk 0:01:39.7]} 31. Rxd5 {[%clk 0:00:16.2]} 31... exd5
{[%clk 0:01:40.6]} 32. h6 {[%clk 0:00:17]} 32... d4 {[%clk 0:01:38.8]} 33. Kf1
{[%clk 0:00:16.9]} 33... b4 {[%clk 0:01:38.9]} 34. axb4 {[%clk 0:00:17.4]} 34...
Rxb4 {[%clk 0:01:39.1]} 35. Rc2 {[%clk 0:00:17.9]} 35... Ke7 {[%clk 0:01:38]}
36. Ke2 {[%clk 0:00:17.7]} 36... Ke6 {[%clk 0:01:38.5]} 37. Kd3 {[%clk
0:00:14.4]} 37... Kd5 {[%clk 0:01:38.2]} 38. Rd2 {[%clk 0:00:11.9]} 38... c4+
{[%clk 0:01:36.7]} 39. Kc2 {[%clk 0:00:11.4]} 39... b5 {[%clk 0:01:34.9]} 40.
Rd1 {[%clk 0:00:11.2]} 40... Ra4 {[%clk 0:01:35]} 41. Re1 {[%clk 0:00:09.5]}
41... b4 {[%clk 0:01:34.3]} 42. b3 {[%clk 0:00:07.9]} 42... d3+ {[%clk
0:01:32.4]} 43. Kb1 {[%clk 0:00:06.2]} 43... cxb3 {[%clk 0:01:32.3]} 44. Kb2
{[%clk 0:00:05.1]} 44... Ra2+ {[%clk 0:01:29.1]} 45. Kxb3 {[%clk 0:00:05.6]}
45... Rxf2 {[%clk 0:01:28.1]} 46. Rd1 {[%clk 0:00:05.7]} 46... Kd4 {[%clk
0:01:28]} 47. Kxb4 {[%clk 0:00:06.4]} 47... d2 {[%clk 0:01:27.6]} 48. Kb3 {[%clk
0:00:07]} 48... Kd3 {[%clk 0:01:27.7]} 49. Kb2 {[%clk 0:00:04.7]} 49... Rh2
{[%clk 0:01:27.6]} 50. g4 {[%clk 0:00:03.5]} 50... Rxh6 {[%clk 0:01:27.2]} 51.
f5 {[%clk 0:00:03.8]} 51... gxf5 {[%clk 0:01:24.9]} 52. gxf5 {[%clk 0:00:04.7]}
52... Rb6+ {[%clk 0:01:24.7]} 53. Ka3 {[%clk 0:00:04.6]} 53... Kc2 {[%clk
0:01:24.5]} 0-1

[Event "*** SCC Grand Prix: Titled Tuesday Blitz"]
[Site "Chess.com"]
[Date "2020.07.21"]
[Round "8"]
[White "Sashadav97"]
[Black "Kezin_Roman"]
[Result "0-1"]
[WhiteElo "2611"]
[BlackElo "2740"]
[TimeControl "180+1"]
[EndTime "11:35:07 PDT"]
[Termination "Kezin_Roman won by resignation"]

1. d4 {[%clk 0:03:00.9]} 1... d5 {[%clk 0:02:59.6]} 2. c4 {[%clk 0:03:00.7]}
2... e6 {[%clk 0:02:59.9]} 3. Nc3 {[%clk 0:03:00.3]} 3... c6 {[%clk 0:03:00.4]}
4. Nf3 {[%clk 0:02:58]} 4... Nf6 {[%clk 0:03:00.1]} 5. Bg5 {[%clk 0:02:57.8]}
5... dxc4 {[%clk 0:02:59.7]} 6. e4 {[%clk 0:02:57.6]} 6... b5 {[%clk 0:03:00]}
7. e5 {[%clk 0:02:57.8]} 7... h6 {[%clk 0:03:00.6]} 8. Bh4 {[%clk 0:02:58.1]}
8... g5 {[%clk 0:03:01.1]} 9. Nxg5 {[%clk 0:02:58.7]} 9... hxg5 {[%clk 0:03:02]}
10. Bxg5 {[%clk 0:02:59.4]} 10... Nbd7 {[%clk 0:03:02.8]} 11. g3 {[%clk
0:02:59.3]} 11... Rg8 {[%clk 0:03:00.3]} 12. h4 {[%clk 0:02:55.2]} 12... Rxg5
{[%clk 0:03:00.4]} 13. hxg5 {[%clk 0:02:56.1]} 13... Nd5 {[%clk 0:03:01]} 14. g6
{[%clk 0:02:50.2]} 14... fxg6 {[%clk 0:03:01.9]} 15. Qg4 {[%clk 0:02:49.6]}
15... Qe7 {[%clk 0:03:02.2]} 16. Qxg6+ {[%clk 0:02:25.8]} 16... Qf7 {[%clk
0:02:26.9]} 17. Qg4 {[%clk 0:02:00]} 17... Bb7 {[%clk 0:02:14]} 18. Bh3 {[%clk
0:01:59.1]} 18... Nxc3 {[%clk 0:02:03.6]} 19. bxc3 {[%clk 0:01:54.9]} 19... c5
{[%clk 0:02:04]} 20. Rh2 {[%clk 0:01:35]} 20... cxd4 {[%clk 0:02:01.8]} 21. cxd4
{[%clk 0:01:33.7]} 21... Bd5 {[%clk 0:01:52.6]} 22. f4 {[%clk 0:01:33.2]} 22...
Bb4+ {[%clk 0:01:47.6]} 23. Ke2 {[%clk 0:01:24]} 23... O-O-O {[%clk 0:01:41.4]}
24. f5 {[%clk 0:01:23.5]} 24... exf5 {[%clk 0:01:25.8]} 25. Qxf5 {[%clk
0:01:24.4]} 25... Qg8 {[%clk 0:01:26.2]} 26. Bg4 {[%clk 0:01:17.9]} 26... Kb8
{[%clk 0:01:18.5]} 27. Rh6 {[%clk 0:00:47.3]} 27... Nb6 {[%clk 0:01:10]} 28. e6
{[%clk 0:00:40.3]} 28... Rf8 {[%clk 0:00:42.7]} 29. Qe5+ {[%clk 0:00:24.4]}
29... Ka8 {[%clk 0:00:41.8]} 30. Bf5 {[%clk 0:00:11.5]} 30... Qg5 {[%clk
0:00:39.2]} 31. Rh8 {[%clk 0:00:11.7]} 31... Qd2+ {[%clk 0:00:32.3]} 0-1

[Event "*** SCC Grand Prix: Titled Tuesday Blitz"]
[Site "Chess.com"]
[Date "2020.07.21"]
[Round "8"]
[White "Omk124"]
[Black "BikingBrian"]
[Result "1-0"]
[WhiteElo "2353"]
[BlackElo "2214"]
[TimeControl "180+1"]
[EndTime "11:35:07 PDT"]
[Termination "Omk124 won by resignation"]

1. e4 {[%clk 0:03:00.9]} 1... c5 {[%clk 0:02:57.7]} 2. Nf3 {[%clk 0:03:01.3]}
2... g6 {[%clk 0:02:56.4]} 3. d4 {[%clk 0:03:01.7]} 3... cxd4 {[%clk 0:02:57.3]}
4. Nxd4 {[%clk 0:03:02.3]} 4... Nc6 {[%clk 0:02:57.3]} 5. c4 {[%clk 0:03:02.8]}
5... Nf6 {[%clk 0:02:57.4]} 6. Nc3 {[%clk 0:03:02.9]} 6... d6 {[%clk 0:02:57.5]}
7. Be2 {[%clk 0:03:02.9]} 7... Nxd4 {[%clk 0:02:57.7]} 8. Qxd4 {[%clk
0:03:02.8]} 8... Bg7 {[%clk 0:02:58.6]} 9. Be3 {[%clk 0:03:03.1]} 9... O-O
{[%clk 0:02:58.7]} 10. Qd2 {[%clk 0:03:03.4]} 10... a5 {[%clk 0:02:59.1]} 11.
O-O {[%clk 0:03:03.6]} 11... a4 {[%clk 0:02:59.5]} 12. Rac1 {[%clk 0:03:03.8]}
12... Qa5 {[%clk 0:02:59.4]} 13. Rfd1 {[%clk 0:03:04.2]} 13... Be6 {[%clk
0:02:54.9]} 14. f3 {[%clk 0:02:57.3]} 14... Rfc8 {[%clk 0:02:53.4]} 15. Nb5
{[%clk 0:02:43]} 15... Nd7 {[%clk 0:02:34.5]} 16. Nd4 {[%clk 0:02:37.7]} 16...
Qxd2 {[%clk 0:02:27.3]} 17. Rxd2 {[%clk 0:02:37.5]} 17... Nc5 {[%clk 0:02:26.9]}
18. Nxe6 {[%clk 0:02:36.7]} 18... Nxe6 {[%clk 0:02:26.7]} 19. Rdc2 {[%clk
0:02:35]} 19... a3 {[%clk 0:02:24.8]} 20. b3 {[%clk 0:02:33.3]} 20... Nd4 {[%clk
0:02:06.8]} 21. Rd2 {[%clk 0:02:18]} 21... Nxb3 {[%clk 0:01:57.5]} 22. axb3
{[%clk 0:02:09.2]} 22... a2 {[%clk 0:01:58.4]} 23. Rxa2 {[%clk 0:02:04.6]} 23...
Rxa2 {[%clk 0:01:56.4]} 24. Bf1 {[%clk 0:02:05.5]} 24... Rb2 {[%clk 0:01:44.8]}
25. Bg5 {[%clk 0:01:59.9]} 25... Bd4+ {[%clk 0:01:36.2]} 26. Kh1 {[%clk
0:01:59.4]} 26... f6 {[%clk 0:01:36.3]} 27. Bf4 {[%clk 0:01:55.1]} 27... Rxb3
{[%clk 0:01:34.4]} 28. c5 {[%clk 0:01:55.6]} 28... Rc3 {[%clk 0:01:28.2]} 29.
Rb1 {[%clk 0:01:37.4]} 29... R8xc5 {[%clk 0:01:17.2]} 30. Rxb7 {[%clk
0:01:37.1]} 30... Rc1 {[%clk 0:01:11.1]} 31. Bxc1 {[%clk 0:01:35.4]} 31... Rxc1
{[%clk 0:01:10.6]} 32. g4 {[%clk 0:01:36]} 32... Rxf1+ {[%clk 0:01:10.3]} 33.
Kg2 {[%clk 0:01:36.9]} 33... Rf2+ {[%clk 0:01:10.5]} 34. Kg3 {[%clk 0:01:36.9]}
34... Kf7 {[%clk 0:01:09.9]} 35. Rb4 {[%clk 0:01:35.6]} 35... Bc5 {[%clk
0:01:04.7]} 36. Rc4 {[%clk 0:01:35.6]} 36... Rf1 {[%clk 0:01:01.7]} 37. Kg2
{[%clk 0:01:35.2]} 37... Rf2+ {[%clk 0:01:01.4]} 38. Kg3 {[%clk 0:01:35.5]}
38... Rb2 {[%clk 0:00:56.4]} 39. h4 {[%clk 0:01:34.2]} 39... h5 {[%clk
0:00:55.8]} 40. gxh5 {[%clk 0:01:33.8]} 40... gxh5 {[%clk 0:00:56.1]} 41. Ra4
{[%clk 0:01:33.9]} 41... Bd4 {[%clk 0:00:51.4]} 42. Rxd4 {[%clk 0:01:33.3]}
42... Ke6 {[%clk 0:00:51]} 43. Rd5 {[%clk 0:01:32.8]} 43... f5 {[%clk
0:00:48.6]} 44. Rxf5 {[%clk 0:01:32.2]} 44... Rb8 {[%clk 0:00:44.8]} 45. Rxh5
{[%clk 0:01:32.1]} 45... Rg8+ {[%clk 0:00:43.8]} 46. Rg5 {[%clk 0:01:32.5]}
46... Rh8 {[%clk 0:00:43.5]} 47. Kg4 {[%clk 0:01:33.1]} 47... Kf6 {[%clk
0:00:42.3]} 48. h5 {[%clk 0:01:33]} 48... e6 {[%clk 0:00:42.4]} 49. Rg6+ {[%clk
0:01:33.4]} 49... Ke7 {[%clk 0:00:42.7]} 50. Kg5 {[%clk 0:01:33.8]} 50... d5
{[%clk 0:00:43.2]} 51. exd5 {[%clk 0:01:32.1]} 51... exd5 {[%clk 0:00:43.6]} 52.
h6 {[%clk 0:01:32.8]} 52... d4 {[%clk 0:00:42.8]} 53. Rg7+ {[%clk 0:01:32]}
53... Ke6 {[%clk 0:00:43.3]} 54. Ra7 {[%clk 0:01:28.7]} 54... Rg8+ {[%clk
0:00:39.9]} 55. Kh5 {[%clk 0:01:28.4]} 55... Kd5 {[%clk 0:00:37.9]} 56. h7
{[%clk 0:01:28.3]} 56... Rh8 {[%clk 0:00:37.6]} 57. Kh6 {[%clk 0:01:27.7]} 57...
d3 {[%clk 0:00:31.6]} 58. Kg7 {[%clk 0:01:27.7]} 58... Rd8 {[%clk 0:00:28.4]}
59. h8=Q {[%clk 0:01:27]} 59... Rxh8 {[%clk 0:00:28.4]} 60. Kxh8 {[%clk
0:01:27.9]} 60... Kd4 {[%clk 0:00:27.7]} 61. Rd7+ {[%clk 0:01:27.2]} 61... Ke3
{[%clk 0:00:28.1]} 62. f4 {[%clk 0:01:28]} 62... d2 {[%clk 0:00:25]} 63. f5
{[%clk 0:01:28.4]} 1-0

[Event "*** SCC Grand Prix: Titled Tuesday Blitz"]
[Site "Chess.com"]
[Date "2020.07.21"]
[Round "8"]
[White "Chopper1905"]
[Black "antoszu"]
[Result "1-0"]
[WhiteElo "2882"]
[BlackElo "2549"]
[TimeControl "180+1"]
[EndTime "11:35:10 PDT"]
[Termination "Chopper1905 won by checkmate"]

1. f4 {[%clk 0:03:00.9]} 1... b6 {[%clk 0:02:58.8]} 2. e4 {[%clk 0:02:58.5]}
2... Bb7 {[%clk 0:02:59.2]} 3. Nc3 {[%clk 0:02:58.1]} 3... e6 {[%clk 0:02:59.4]}
4. Nf3 {[%clk 0:02:55.8]} 4... d5 {[%clk 0:02:58.9]} 5. e5 {[%clk 0:02:49]} 5...
c5 {[%clk 0:02:59]} 6. d4 {[%clk 0:02:47.5]} 6... Nc6 {[%clk 0:02:52.6]} 7. Bb5
{[%clk 0:02:45.1]} 7... a6 {[%clk 0:02:47.4]} 8. Bxc6+ {[%clk 0:02:40.2]} 8...
Bxc6 {[%clk 0:02:48.3]} 9. O-O {[%clk 0:02:40.1]} 9... Nh6 {[%clk 0:02:43.1]}
10. Be3 {[%clk 0:02:36.4]} 10... Be7 {[%clk 0:02:38.6]} 11. a4 {[%clk
0:02:32.5]} 11... O-O {[%clk 0:02:22.2]} 12. Kh1 {[%clk 0:02:31]} 12... Nf5
{[%clk 0:02:07.7]} 13. Bf2 {[%clk 0:02:30]} 13... Qc7 {[%clk 0:01:57.2]} 14. Qd2
{[%clk 0:02:10.4]} 14... cxd4 {[%clk 0:01:49.5]} 15. Nxd4 {[%clk 0:02:10.2]}
15... Nxd4 {[%clk 0:01:49.7]} 16. Bxd4 {[%clk 0:02:11.1]} 16... b5 {[%clk
0:01:50.2]} 17. a5 {[%clk 0:02:06.3]} 17... b4 {[%clk 0:01:50.2]} 18. Nd1 {[%clk
0:02:05.9]} 18... Bb5 {[%clk 0:01:50.1]} 19. Rf3 {[%clk 0:02:04.6]} 19... Rac8
{[%clk 0:01:48.4]} 20. Ne3 {[%clk 0:02:01.7]} 20... g6 {[%clk 0:01:14.1]} 21. f5
{[%clk 0:01:54.2]} 21... Bg5 {[%clk 0:00:27.5]} 22. f6 {[%clk 0:01:38.7]} 22...
Kh8 {[%clk 0:00:23.3]} 23. Rg3 {[%clk 0:01:33]} 23... Bf4 {[%clk 0:00:19.8]} 24.
Rh3 {[%clk 0:01:33.1]} 24... h5 {[%clk 0:00:14.1]} 25. Rxh5+ {[%clk 0:01:13.5]}
25... gxh5 {[%clk 0:00:13.4]} 26. Qd1 {[%clk 0:01:14.1]} 26... Rfd8 {[%clk
0:00:02.9]} 27. Qxh5+ {[%clk 0:01:13.4]} 27... Kg8 {[%clk 0:00:03.6]} 28. Qg4+
{[%clk 0:00:44.2]} 28... Kf8 {[%clk 0:00:03.9]} 29. Qxf4 {[%clk 0:00:44.7]}
29... Ke8 {[%clk 0:00:03.1]} 30. Bb6 {[%clk 0:00:36.1]} 30... Qc6 {[%clk
0:00:03.5]} 31. Qxb4 {[%clk 0:00:35.5]} 31... d4 {[%clk 0:00:03.1]} 32. Qe7#
{[%clk 0:00:35.4]} 1-0

[Event "*** SCC Grand Prix: Titled Tuesday Blitz"]
[Site "Chess.com"]
[Date "2020.07.21"]
[Round "8"]
[White "LyonBeast"]
[Black "mishanick"]
[Result "1-0"]
[WhiteElo "3029"]
[BlackElo "2920"]
[TimeControl "180+1"]
[EndTime "11:35:13 PDT"]
[Termination "LyonBeast won by resignation"]

1. Nf3 {[%clk 0:03:00.9]} 1... d5 {[%clk 0:02:59.9]} 2. e3 {[%clk 0:02:58.7]}
2... Nf6 {[%clk 0:03:00.3]} 3. c4 {[%clk 0:02:57.6]} 3... e6 {[%clk 0:03:00.4]}
4. d4 {[%clk 0:02:56.7]} 4... dxc4 {[%clk 0:02:58.2]} 5. Bxc4 {[%clk 0:02:56.4]}
5... a6 {[%clk 0:02:58.8]} 6. O-O {[%clk 0:02:56.4]} 6... c5 {[%clk 0:02:58.5]}
7. dxc5 {[%clk 0:02:56.5]} 7... Bxc5 {[%clk 0:02:57.1]} 8. Qxd8+ {[%clk
0:02:55.8]} 8... Kxd8 {[%clk 0:02:58]} 9. Ne5 {[%clk 0:02:56.1]} 9... Ke7 {[%clk
0:02:57]} 10. Be2 {[%clk 0:02:56.7]} 10... Nbd7 {[%clk 0:02:55.6]} 11. Nd3
{[%clk 0:02:56.9]} 11... Bd6 {[%clk 0:02:55]} 12. Bf3 {[%clk 0:02:47]} 12... Rd8
{[%clk 0:02:49.2]} 13. Nd2 {[%clk 0:02:35.5]} 13... Nc5 {[%clk 0:02:25.7]} 14.
Nxc5 {[%clk 0:02:31.1]} 14... Bxc5 {[%clk 0:02:26.6]} 15. Nb3 {[%clk 0:02:28.1]}
15... Bd6 {[%clk 0:02:15.7]} 16. Bd2 {[%clk 0:02:25.3]} 16... Rb8 {[%clk
0:02:14]} 17. Rfd1 {[%clk 0:02:08.2]} 17... e5 {[%clk 0:01:50.3]} 18. Bc3 {[%clk
0:01:59.8]} 18... Bg4 {[%clk 0:01:30.3]} 19. Bxg4 {[%clk 0:01:52.5]} 19... Nxg4
{[%clk 0:01:31.2]} 20. Na5 {[%clk 0:01:53]} 20... Bc7 {[%clk 0:01:21.2]} 21.
Rxd8 {[%clk 0:01:52.2]} 21... Kxd8 {[%clk 0:01:22.1]} 22. h3 {[%clk 0:01:42.9]}
22... Nf6 {[%clk 0:01:21.8]} 23. Rd1+ {[%clk 0:01:41.2]} 23... Nd7 {[%clk
0:01:22.2]} 24. Nc4 {[%clk 0:01:35.8]} 24... Ke7 {[%clk 0:01:17.2]} 25. g4
{[%clk 0:01:30.4]} 25... b5 {[%clk 0:01:06.8]} 26. Na5 {[%clk 0:01:28.6]} 26...
Bxa5 {[%clk 0:01:02.1]} 27. Bxa5 {[%clk 0:01:29.5]} 27... Ke6 {[%clk 0:01:02.1]}
28. Rc1 {[%clk 0:01:25.3]} 28... Ra8 {[%clk 0:00:53.1]} 29. Bb4 {[%clk
0:01:15.2]} 29... a5 {[%clk 0:00:39.5]} 30. Rc6+ {[%clk 0:01:14.9]} 30... Kd5
{[%clk 0:00:39.7]} 31. Rd6+ {[%clk 0:01:14.9]} 31... Ke4 {[%clk 0:00:39.5]} 32.
Bd2 {[%clk 0:01:08.1]} 32... Nf6 {[%clk 0:00:24.1]} 33. Kg2 {[%clk 0:01:06.5]}
33... Nd5 {[%clk 0:00:23.6]} 34. f3+ {[%clk 0:01:06.7]} 34... Kd3 {[%clk
0:00:23.9]} 35. Rxd5+ {[%clk 0:01:07.2]} 35... Kc2 {[%clk 0:00:22.4]} 36. Bc3
{[%clk 0:01:03.8]} 36... b4 {[%clk 0:00:23]} 37. Bxe5 {[%clk 0:01:04]} 37... f6
{[%clk 0:00:23.9]} 38. Bd4 {[%clk 0:01:02]} 38... a4 {[%clk 0:00:24.8]} 39. Rc5+
{[%clk 0:00:58.4]} 39... Kb1 {[%clk 0:00:24.5]} 40. a3 {[%clk 0:00:58.8]} 40...
b3 {[%clk 0:00:23.8]} 41. Rc4 {[%clk 0:00:56.1]} 41... Ka2 {[%clk 0:00:22.5]}
42. f4 {[%clk 0:00:55.4]} 42... Ra6 {[%clk 0:00:18.4]} 43. Kf3 {[%clk
0:00:54.6]} 43... g6 {[%clk 0:00:19]} 44. f5 {[%clk 0:00:54]} 1-0